bitfinex/quotes_ETHUSD_20240718
["timestamp","ask_amount","ask_price","bid_price","bid_amount"]
[1721274608492,5.91197,3434.1,3433.2,2.91265]
[1721274609007,5.91197,3434.1,3433.1,4.9058]
[1721274609190,5.91197,3434.1,3433.2,2.91273]
[1721274609521,7.035128,3434.1,3433.2,2.91273]
[1721274610516,2.91241,3433.6,3433.1,1.993]
[1721274610730,2.91222,3433.9,3433.1,1.993]
[1721274610899,7.035128,3434.1,3433.2,2.91265]
[1721274611099,7.035128,3434.1,3433.1,1.993]
[1721274611100,3.0,3434.1,3433.1,1.993]
[1721274611303,3.736938,3434.6,3433.1,1.993]
[1721274611304,3.0,3434.5,3433.1,1.993]
[1721274611629,3.0,3434.5,3433.5,2.91247]
[1721274611630,2.91181,3434.3,3433.5,2.91247]
[1721274612337,2.91194,3434.2,3433.3,2.91256]
[1721274613105,2.91172,3434.4,3433.4,2.91253]
[1721274613309,2.91172,3434.4,3433.4,3.694355]
[1721274613607,2.91183,3434.3,3433.5,2.4458]
[1721274613930,2.91183,3434.3,3433.1,1.993]
[1721274613931,5.91163,3434.5,3433.1,4.90576]
[1721274614089,2.91211,3434.0,3433.1,4.90576]
[1721274614427,2.91191,3434.2,3433.3,2.91261]
[1721274614601,2.91197,3434.1,3433.3,2.91261]
[1721274614930,2.91197,3434.1,3433.3,3.694442]
[1721274615444,2.91256,3433.5,3432.7,2.4458]
[1721274615590,2.9126,3433.4,3432.5,2.91331]
[1721274615927,2.9126,3433.4,3432.6,2.91321]
[1721274616087,5.2225,3433.6,3432.6,5.82637]
[1721274616088,2.9124,3433.6,3432.6,5.82637]
[1721274616289,3.0,3433.5,3432.7,2.3917]
[1721274616533,3.0,3433.5,3432.8,0.821807]
[1721274617127,2.91224,3433.8,3432.9,2.91297]
[1721274617339,2.91224,3433.8,3432.8,0.821807]
[1721274618202,2.91224,3433.8,3433.0,2.91289]
[1721274618710,2.91205,3434.0,3433.0,2.91289]
[1721274618907,5.91189,3434.2,3432.8,0.821807]
[1721274618908,5.91189,3434.2,3433.2,2.91272]
[1721274619248,2.91197,3434.1,3433.2,2.91272]
[1721274619949,2.91197,3434.1,3433.3,2.91264]
[1721274620247,2.91207,3434.0,3433.1,3.2862497]
[1721274620906,2.91193,3434.2,3433.4,5.39194]
[1721274621127,2.91193,3434.2,3433.5,0.539194]
[1721274621442,2.3497,3434.4,3433.5,3.451644]
[1721274621648,5.3497,3434.4,3433.5,3.451644]
[1721274621812,2.9118,3434.3,3433.5,3.451644]
[1721274622211,2.91189,3434.2,3433.2,2.91272]
[1721274622412,2.91197,3434.1,3433.2,2.91272]
[1721274623118,2.91197,3434.1,3433.0,5.18419]
[1721274623119,2.91207,3434.0,3433.0,2.2713]
[1721274623326,2.91207,3434.0,3433.0,5.1842]
[1721274623327,2.91222,3433.9,3433.0,5.1842]
[1721274623526,2.91223,3433.8,3433.0,5.1842]
[1721274623937,2.91234,3433.7,3433.0,5.1842]
[1721274624147,2.91239,3433.6,3432.8,2.91307]
[1721274624358,2.91257,3433.4,3432.6,2.2583]
[1721274624645,2.91257,3433.4,3432.6,5.17151]
[1721274625019,2.91239,3433.6,3432.7,2.91314]
[1721274625629,2.91249,3433.5,3432.7,2.91314]
[1721274626942,2.91249,3433.5,3432.6,2.2583]
[1721274626943,2.91259,3433.4,3432.6,2.2583]
[1721274627450,2.91259,3433.4,3432.6,5.17154]
[1721274627739,2.4889,3433.7,3432.6,2.2583]
[1721274627953,2.91293,3433.0,3432.2,2.3682]
[1721274628109,2.91313,3432.8,3432.0,2.9137]
[1721274628305,2.91293,3433.0,3432.0,2.9137]
[1721274628536,2.91316,3432.7,3432.0,2.9137]
[1721274630323,2.91316,3432.7,3431.8,5.81648231]
[1721274630324,2.91324,3432.6,3431.8,5.81648231]
[1721274630645,2.91324,3432.6,3431.9,2.53305545]
[1721274630943,2.91316,3432.7,3432.0,2.53305545]
[1721274631154,2.91316,3432.7,3432.1,1.01322218]
[1721274631358,3.0,3433.3,3432.1,1.01322218]
[1721274631359,2.91286,3433.1,3432.2,2.53292769]
[1721274631646,5.91298,3433.0,3432.3,2.53292769]
[1721274631851,2.91298,3433.0,3432.2,2.91355]
[1721274632069,2.91298,3433.0,3432.3,2.53280313]
[1721274632277,2.91298,3433.0,3432.2,2.91355]
[1721274632461,2.91298,3433.0,3432.3,2.53280262]
[1721274632662,5.91273,3433.2,3432.4,2.4628]
[1721274632977,10.25256,3433.4,3432.5,5.44594406]
[1721274633138,2.91256,3433.4,3432.6,3.92633342]
[1721274633337,2.91265,3433.3,3432.6,2.91323]
[1721274633850,2.91265,3433.3,3432.4,3.07229231]
[1721274633851,2.91265,3433.3,3432.4,5.98569231]
[1721274634187,3.5558763,3433.3,3432.5,2.53261345]
[1721274634364,3.5558763,3433.3,3432.6,1.01304538]
[1721274634540,3.5558763,3433.3,3432.5,2.91332]
[1721274634744,2.91265,3433.3,3432.4,2.4628]
[1721274635974,2.91283,3433.1,3432.4,2.4628]
[1721274637071,5.23325,3433.9,3432.7,2.91312]
[1721274637249,2.9124,3433.6,3432.7,2.91312]
[1721274637452,2.9124,3433.6,3432.8,2.91307]
[1721274637636,2.3211,3433.9,3432.8,2.91307]
[1721274637637,2.91232,3433.7,3432.9,2.91298]
[1721274637837,2.91232,3433.7,3433.0,2.307]
[1721274638771,2.91232,3433.7,3432.9,2.91298]
[1721274639341,2.91232,3433.7,3432.7,6.27798323]
[1721274639577,3.494766,3433.7,3432.8,2.91304]
[1721274641386,2.91232,3433.7,3432.8,2.91304]
[1721274641566,2.91232,3433.7,3432.9,2.91297]
[1721274647371,2.4518,3433.6,3432.9,2.91297]
[1721274648558,2.4518,3433.6,3432.7,2.91314]
[1721274648803,2.91249,3433.5,3432.7,2.91314]
[1721274649304,3.448919,3433.5,3432.7,2.91314]
[1721274651305,2.91224,3433.8,3433.0,2.91287]
[1721274653710,2.91224,3433.8,3433.1,2.91281]
[1721274654589,2.91215,3433.9,3433.1,2.91281]
[1721274654902,7.34,3434.4,3432.4,5.23225]
[1721274654903,5.34243,3435.3,3434.1,2.91196]
[1721274655116,9.85842662,3435.3,3434.3,2.91173]
[1721274655277,2.91105,3435.2,3434.3,2.91173]
[1721274655673,5.34242,3435.3,3434.1,4.90496]
[1721274655875,2.91124,3435.0,3434.1,4.90496]
[1721274656171,2.91145,3434.8,3433.9,2.91214]
[1721274656516,3.493749,3434.7,3433.9,2.91214]
[1721274658988,3.493749,3434.7,3434.0,2.91204]
[1721274658989,0.582269,3434.7,3434.0,2.91204]
[1721274659305,2.91129,3434.9,3434.0,2.91204]
[1721274659483,2.91112,3435.1,3434.0,2.91204]
[1721274660015,2.91112,3435.1,3434.2,2.91182]
[1721274661916,5.34235,3435.3,3434.0,2.91204]
[1721274662100,2.91105,3435.2,3434.3,2.9118]
[1721274662287,2.91125,3435.0,3434.1,4.90495]
[1721274662603,2.91125,3435.0,3433.7,2.3963]
[1721274662604,2.91125,3435.0,3434.2,2.91185]
[1721274664476,3.445275,3435.2,3434.2,2.91185]
[1721274664807,2.91122,3435.0,3434.2,2.91185]
[1721274664998,2.91122,3435.0,3434.2,3.494239]
[1721274665321,2.91122,3435.0,3434.2,2.91185]
[1721274665625,2.91138,3434.8,3433.7,7.30152]
[1721274665774,2.91138,3434.8,3434.0,2.91199]
[1721274667923,3.446508,3434.5,3433.7,2.91229]
[1721274669904,3.446508,3434.5,3433.4,2.2729]
[1721274669905,0.534868,3434.5,3433.4,2.2729]
[1721274670197,0.534868,3434.5,3432.7,5.91311]
[1721274670198,2.91232,3433.7,3432.8,2.91303]
[1721274670625,2.91232,3433.7,3432.6,5.18807]
[1721274670796,2.3432,3434.0,3432.6,2.91317]
[1721274670797,2.91257,3433.4,3432.6,2.91317]
[1721274671001,3.495067,3433.4,3432.6,2.91317]
[1721274671308,2.91257,3433.4,3432.6,2.91317]
[1721274672028,2.9124,3433.6,3432.7,2.91313]
[1721274673109,2.9124,3433.6,3432.8,2.91305]
[1721274677636,2.91248,3433.5,3432.7,2.91313]
[1721274677805,2.91248,3433.5,3432.6,2.91323]
[1721274678430,3.437883,3433.7,3432.6,2.91323]
[1721274678628,2.3432,3434.0,3432.6,2.91323]
[1721274678629,2.91224,3433.8,3432.6,2.91323]
[1721274678835,2.3432,3434.0,3433.0,2.91289]
[1721274679035,2.3432,3434.0,3433.1,2.9128]
[1721274680564,2.91214,3433.9,3433.1,2.9128]
[1721274681829,5.25529,3434.0,3433.1,2.9128]
[1721274682016,5.25529,3434.0,3433.0,2.91289]
[1721274682017,6.072017,3434.0,3433.2,2.91273]
[1721274683756,2.91216,3433.9,3433.2,2.91273]
[1721274684544,2.91223,3433.8,3433.0,2.91289]
[1721274684930,6.072027,3434.0,3433.1,2.9128]
[1721274686543,7.34,3434.4,3432.8,1.993]
[1721274686544,2.91181,3434.3,3433.2,5.39482]
[1721274686763,2.91188,3434.2,3433.4,2.91255]
[1721274688337,2.91197,3434.1,3433.3,2.91262]
[1721274690856,5.35821,3434.4,3433.0,2.91282]
[1721274690857,2.4465,3434.4,3433.1,2.91277]
[1721274691061,2.91215,3433.9,3433.1,2.91277]
[1721274691365,2.91215,3433.9,3433.2,2.91272]
[1721274692211,5.31675,3433.9,3433.2,2.91272]
[1721274693067,2.91215,3433.9,3433.2,2.91272]
[1721274694881,3.19925,3434.3,3433.0,2.91282]
[1721274695088,2.91189,3434.2,3433.1,3.645832]
[1721274695930,2.91189,3434.2,3433.4,2.91255]
[1721274697691,2.91189,3434.2,3433.4,5.26655]
[1721274698231,2.4046,3434.3,3432.8,1.993]
[1721274698232,2.91208,3434.0,3432.8,2.354]
[1721274698738,2.91208,3434.0,3433.2,2.91266]
[1721274699711,3.15234,3434.2,3433.3,2.91258]
[1721274699904,3.15234,3434.2,3433.3,5.82516]
[1721274701603,3.15234,3434.2,3433.3,2.91258]
[1721274701808,2.91197,3434.1,3433.3,2.91258]
[1721274702303,0.24046,3434.2,3433.3,2.91258]
[1721274702304,2.91206,3434.0,3433.3,2.91258]
[1721274702480,2.91214,3433.9,3433.1,2.9128]
[1721274702686,2.91214,3433.9,3432.6,2.91317]
[1721274702687,2.91254,3433.5,3432.7,2.91315]
[1721274703093,2.91259,3433.4,3432.6,2.9132]
[1721274704227,2.91259,3433.4,3431.8,0.60949231]
[1721274704228,2.91307,3432.8,3431.6,9.7891]
[1721274704384,2.91307,3432.8,3432.0,2.91368]
[1721274704587,2.91307,3432.8,3432.1,2.91364]
[1721274707593,2.91317,3432.7,3431.9,2.91379]
[1721274707933,3.204487,3432.7,3431.9,2.91379]
[1721274708654,2.91325,3432.6,3431.7,2.91396]
[1721274709327,2.91325,3432.6,3431.6,5.40318]
[1721274709328,2.91325,3432.6,3431.8,2.91389]
[1721274709854,2.91325,3432.6,3431.9,2.91381]
[1721274710048,2.91311,3432.8,3431.9,2.91381]
[1721274710213,2.91311,3432.8,3431.9,3.745501]
[1721274711658,2.913,3432.9,3431.9,3.745501]
[1721274711659,2.913,3432.9,3432.1,2.91366]
[1721274713322,2.913,3432.9,3432.2,2.91356]
[1721274713950,2.913,3432.9,3431.9,5.738521]
[1721274713951,10.543767,3433.5,3432.6,2.91322]
[1721274714266,2.4348,3433.6,3432.8,2.91306]
[1721274714435,5.34724,3433.6,3432.8,2.91306]
[1721274716026,5.34724,3433.6,3432.7,2.91314]
[1721274716027,2.91248,3433.5,3432.7,2.91314]
[1721274716734,2.91268,3433.3,3432.5,2.91331]
[1721274716936,0.582516,3433.2,3432.5,2.91331]
[1721274717242,2.91288,3433.1,3432.2,2.9135]
[1721274717430,5.4103,3433.0,3432.2,2.9135]
[1721274720553,5.4103,3433.0,3432.0,2.91375]
[1721274720554,2.91298,3432.9,3432.0,2.91375]
[1721274721759,2.91298,3432.9,3432.1,2.91366]
[1721274721961,3.8035516,3432.9,3432.1,2.91366]
[1721274722142,2.91298,3432.9,3432.1,2.91366]
[1721274722471,2.91323,3432.7,3431.8,2.4462]
[1721274723471,2.91323,3432.7,3431.9,2.91383]
[1721274724050,2.91323,3432.7,3431.7,2.91392]
[1721274724272,2.91323,3432.7,3432.0,2.91373]
[1721274724743,2.91323,3432.7,3431.9,2.91383]
[1721274725072,2.91323,3432.7,3431.9,3.496605]
[1721274726070,2.91322,3432.7,3431.9,3.496605]
[1721274726281,2.4974,3433.0,3431.6,2.91408]
[1721274726282,2.91343,3432.4,3431.6,2.91408]
[1721274728578,2.3726,3432.7,3431.7,0.05827453]
[1721274728789,2.91315,3432.8,3432.0,2.91374]
[1721274728939,2.91315,3432.8,3432.0,2.97200856]
[1721274729140,2.91315,3432.8,3432.0,3.93788986]
[1721274729342,7.34,3433.1,3432.2,1.993]
[1721274729654,7.34,3433.1,3432.5,5.20012]
[1721274729857,5.24197,3433.4,3432.5,5.20012]
[1721274730055,2.9124,3433.6,3432.6,2.91323]
[1721274730267,12.58164,3433.8,3432.7,2.804335]
[1721274730564,2.91224,3433.8,3432.9,2.91292]
[1721274731486,2.91224,3433.8,3433.0,2.91288]
[1721274731670,2.91224,3433.8,3432.7,2.804335]
[1721274731671,5.24132,3434.2,3433.1,0.05825174]
[1721274731875,5.24132,3434.2,3433.3,2.91264]
[1721274731876,2.91198,3434.1,3433.3,2.91264]
[1721274732787,2.91206,3434.0,3433.1,2.91277]
[1721274732959,2.91222,3433.8,3433.0,2.91289]
[1721274733768,2.91206,3434.0,3432.8,2.91306]
[1721274733769,2.91232,3433.7,3432.8,2.91306]
[1721274734561,2.91232,3433.7,3432.9,2.91296]
[1721274734767,2.91232,3433.7,3432.9,3.694871]
[1721274736155,2.91232,3433.7,3432.5,2.2868]
[1721274736156,2.91255,3433.5,3432.5,2.2868]
[1721274736387,2.91255,3433.5,3432.6,2.91322]
[1721274736586,2.91255,3433.5,3432.7,2.91315]
[1721274736966,2.91258,3433.4,3432.7,2.91315]
[1721274739011,2.91266,3433.3,3432.4,2.91333]
[1721274739184,2.9128,3433.2,3432.4,2.91333]
[1721274739386,2.91282,3433.1,3432.2,2.91356]
[1721274739596,2.91282,3433.1,3432.3,2.91347]
[1721274741180,2.91301,3432.9,3432.2,2.91356]
[1721274741419,5.22731,3432.9,3432.2,2.91356]
[1721274743089,2.91273,3433.2,3432.2,2.91356]
[1721274743412,2.91282,3433.1,3432.3,2.91347]
[1721274743614,2.91282,3433.1,3432.0,2.91375]
[1721274743615,2.91307,3432.8,3432.0,2.91375]
[1721274744018,2.91307,3432.8,3432.1,2.91365]
[1721274747523,0.8785866,3433.2,3432.2,2.91356]
[1721274747834,2.960566,3433.3,3432.2,2.91356]
[1721274747835,2.91282,3433.1,3432.3,2.91347]
[1721274748398,2.91276,3433.2,3432.4,2.91341]
[1721274748636,10.25229,3433.8,3432.4,2.91341]
[1721274748637,2.91248,3433.5,3432.7,2.91313]
[1721274748836,2.91248,3433.5,3432.8,2.91306]
[1721274749533,5.17345,3433.7,3432.8,2.91306]
[1721274750635,2.9124,3433.6,3432.8,2.91306]
[1721274750834,2.2611,3433.7,3432.8,2.91306]
[1721274750835,2.2611,3433.7,3433.0,2.91289]
[1721274751036,2.91224,3433.8,3433.0,2.91289]
[1721274751644,2.2951,3434.1,3432.8,2.91302]
[1721274751851,5.2951,3434.1,3432.8,2.91302]
[1721274752350,2.91242,3433.6,3432.8,2.91302]
[1721274752662,2.91242,3433.6,3432.8,3.495646]
[1721274755636,2.91259,3433.4,3432.4,5.33139]
[1721274755961,2.91259,3433.4,3432.6,2.91324]
[1721274756178,2.91259,3433.4,3432.4,5.33139]
[1721274756179,2.91265,3433.3,3432.5,2.91331]
[1721274756375,2.91265,3433.3,3432.4,2.418]
[1721274756549,2.4376,3433.5,3432.2,2.91355]
[1721274756550,2.9129,3433.0,3432.2,2.91355]
[1721274756755,0.582564,3432.9,3432.2,2.91355]
[1721274757066,5.3505,3433.0,3432.2,2.91355]
[1721274759355,2.9129,3433.0,3432.2,2.91355]
[1721274759556,2.91283,3433.1,3432.2,2.91355]
[1721274759981,2.91283,3433.1,3432.3,2.91349]
[1721274760789,2.91283,3433.1,3432.3,2.91343]
[1721274761296,3.727411,3433.1,3432.3,2.91343]
[1721274761584,3.727411,3433.1,3432.0,2.9137]
[1721274761585,2.91299,3432.9,3432.0,2.9137]
[1721274761749,2.265,3432.8,3432.0,2.9137]
[1721274762148,2.265,3432.8,3431.9,2.91382]
[1721274762396,0.517791,3432.7,3431.9,2.91382]
[1721274762692,3.430971,3432.7,3431.9,2.91382]
[1721274762993,2.91325,3432.6,3431.7,2.91396]
[1721274763498,2.91325,3432.6,3431.8,2.91388]
[1721274764249,2.91333,3432.5,3431.8,2.91388]
[1721274766278,2.91344,3432.4,3431.4,1.993]
[1721274766481,2.91344,3432.4,3431.5,2.91413]
[1721274767180,5.20915,3432.1,3431.1,2.91443]
[1721274768396,2.9139,3431.9,3430.9,2.91468]
[1721274768892,2.91395,3431.8,3430.9,2.91468]
[1721274769104,2.91395,3431.8,3431.0,2.91458]
[1721274770180,2.91384,3431.9,3431.1,2.9145]
[1721274773086,2.91375,3432.0,3431.2,2.91443]
[1721274778497,2.91386,3431.9,3431.0,2.91459]
[1721274778807,2.91392,3431.8,3431.5,0.0294]
[1721274778967,0.291392,3431.7,3431.5,0.0294]
[1721274779823,5.4386,3432.1,3431.5,0.0294]
[1721274780267,2.91376,3432.0,3431.5,0.0294]
[1721274780467,2.3667,3433.0,3431.5,2.5146]
[1721274780717,2.91307,3432.8,3432.0,2.91373]
[1721274780914,2.91319,3432.7,3432.0,2.91373]
[1721274781201,0.582626,3432.6,3432.0,2.91373]
[1721274781379,2.91319,3432.7,3432.0,2.91373]
[1721274782303,2.91303,3432.9,3432.0,2.91373]
[1721274783594,2.91303,3432.9,3432.1,2.91364]
[1721274784687,2.3667,3433.0,3432.1,2.91364]
[1721274784900,2.3667,3433.0,3432.2,5.82716]
[1721274785914,2.3667,3433.0,3432.3,2.91348]
[1721274786493,2.3667,3433.0,3432.2,2.91358]
[1721274786805,5.91266,3433.3,3432.5,2.91332]
[1721274787706,2.91274,3433.2,3432.2,5.29111]
[1721274788810,2.91274,3433.2,3432.4,2.91339]
[1721274789120,3.0,3433.3,3432.0,2.91371]
[1721274789333,5.30507,3432.8,3432.1,2.91366]
[1721274791896,2.3269,3433.2,3432.1,2.91366]
[1721274792121,2.3269,3433.2,3432.5,2.91332]
[1721274792734,2.3269,3433.2,3432.4,2.91338]
[1721274792735,2.3269,3433.2,3432.3,2.91345]
[1721274793038,2.3269,3433.2,3432.5,2.91331]
[1721274793039,0.23269,3433.1,3432.5,2.91331]
[1721274794197,0.23269,3433.1,3432.2,2.91357]
[1721274795225,0.23269,3433.1,3432.4,2.91335]
[1721274796797,3.14551,3433.1,3432.2,2.91357]
[1721274796999,3.14551,3433.1,3432.3,2.91348]
[1721274797201,0.547241,3433.0,3432.3,2.91348]
[1721274800312,3.14551,3433.1,3432.3,2.91348]
[1721274800641,3.937727,3433.5,3432.4,2.91337]
[1721274801205,2.91256,3433.4,3432.7,2.91314]
[1721274801600,2.91256,3433.4,3432.5,2.91327]
[1721274801806,1.025247,3433.5,3432.4,2.91337]
[1721274801807,2.91274,3433.2,3432.4,2.91337]
[1721274802315,2.91282,3433.1,3432.4,2.91337]
[1721274803054,3.937737,3433.5,3433.0,0.0294]
[1721274803630,1.025247,3433.5,3433.0,0.0294]
[1721274805006,2.4571,3433.7,3433.0,2.94229]
[1721274805649,2.91242,3433.6,3433.0,0.0294]
[1721274805848,3.46248,3433.5,3433.0,0.0294]
[1721274806060,2.91281,3433.1,3433.0,0.0294]
[1721274806360,8.26262,3433.1,3433.0,0.0294]
[1721274806505,9.638882,3433.1,3433.0,0.0294]
[1721274810728,6.37562,3433.1,3433.0,0.0294]
[1721274811047,5.82562,3433.1,3433.0,0.0294]
[1721274811252,2.91281,3433.1,3433.0,0.0294]
[1721274812249,2.91265,3433.3,3433.0,0.0294]
[1721274812454,2.91277,3433.2,3433.0,0.0294]
[1721274812677,3.744942,3433.2,3433.0,0.0294]
[1721274813950,2.91277,3433.2,3433.0,0.0294]
[1721274814670,5.40879,3433.5,3433.0,0.0294]
[1721274814671,2.9126,3433.4,3433.0,0.0294]
[1721274815932,2.91232,3433.7,3433.0,0.0294]
[1721274816960,2.91241,3433.6,3433.0,0.0294]
[1721274830213,2.91253,3433.5,3433.0,0.0294]
[1721274830420,0.582494,3433.5,3433.0,0.0294]
[1721274830589,2.91276,3433.2,3433.0,0.0294]
[1721274830785,2.91281,3433.1,3433.0,0.0294]
[1721274830990,5.82562,3433.1,3433.0,0.0294]
[1721274831193,6.491382,3433.1,3433.0,0.0294]
[1721274831411,7.041382,3433.1,3433.0,0.0294]
[1721274832498,12.95720602,3433.1,3433.0,0.0294]
[1721274832714,15.95722534,3433.1,3433.0,0.0294]
[1721274833015,2.4717,3432.5,3431.1,2.4967]
[1721274833186,2.4717,3432.5,3430.5,5.18769]
[1721274833187,2.91427,3431.4,3430.5,5.18769]
[1721274833380,2.91436,3431.3,3430.5,2.2727]
[1721274835181,2.91436,3431.3,3430.5,5.18772]
[1721274835377,2.91418,3431.5,3430.5,7.18572]
[1721274835992,2.91418,3431.5,3430.7,2.91485]
[1721274836189,2.91426,3431.4,3430.5,7.18572]
[1721274836505,2.91426,3431.4,3430.5,5.18772]
[1721274840414,2.91438,3431.3,3430.5,2.2727]
[1721274841318,2.91446,3431.2,3430.5,2.2727]
[1721274841883,2.91435,3431.3,3430.5,2.2727]
[1721274842083,2.91435,3431.3,3430.6,0.518779]
[1721274842691,2.91421,3431.5,3430.6,0.518779]
[1721274843132,2.91426,3431.4,3430.6,0.518779]
[1721274844135,2.9141,3431.6,3430.6,3.433669]
[1721274844335,2.91417,3431.5,3430.6,3.433669]
[1721274844512,2.91417,3431.5,3430.7,3.9767869]
[1721274844707,7.34,3432.0,3430.7,3.9767869]
[1721274844708,2.91404,3431.7,3430.8,2.91473]
[1721274844912,2.91395,3431.8,3431.0,2.9146]
[1721274845235,10.25375,3432.0,3431.1,5.30404]
[1721274847529,2.91409,3431.6,3431.1,2.3896]
[1721274847901,2.91396,3431.8,3431.1,3.119832]
[1721274848102,7.34,3432.0,3431.1,3.119832]
[1721274848336,2.91408,3431.7,3431.1,3.119832]
[1721274848522,2.91443,3431.2,3430.7,1.0619369]
[1721274848836,2.91443,3431.2,3430.6,2.4586]
[1721274850317,2.91419,3431.5,3430.6,2.4586]
[1721274850639,2.91428,3431.4,3430.6,2.4586]
[1721274850816,2.91436,3431.3,3430.6,2.4586]
[1721274851159,2.91436,3431.3,3430.7,0.837362]
[1721274852834,2.91444,3431.2,3430.7,0.837362]
[1721274854061,2.91444,3431.2,3430.7,0.837362]
[1721274857055,2.91419,3431.5,3430.7,0.837362]
[1721274857056,2.91419,3431.5,3430.7,3.752192]
[1721274857562,2.3645,3431.9,3430.7,0.837362]
[1721274857784,2.3645,3431.9,3430.6,2.4586]
[1721274858139,2.9144,3431.3,3430.6,2.4586]
[1721274859246,2.91443,3431.2,3430.6,2.4586]
[1721274867865,2.91408,3431.7,3430.6,2.4586]
[1721274868056,7.34,3432.0,3431.0,2.91459]
[1721274868057,2.91385,3431.9,3431.0,2.91459]
[1721274868254,2.91385,3431.9,3431.1,2.879359]
[1721274868786,2.91392,3431.8,3431.1,2.879359]
[1721274871284,2.91401,3431.7,3431.1,2.3881]
[1721274871485,5.82807,3431.7,3431.1,2.3881]
[1721274872074,5.47145,3432.4,3431.1,2.3881]
[1721274872276,2.324,3431.8,3430.6,2.3869]
[1721274872484,2.91451,3431.2,3430.6,2.3869]
[1721274872670,2.91458,3431.1,3430.6,2.3869]
[1721274874186,2.91451,3431.2,3429.8,0.60949231]
[1721274874187,0.582909,3431.0,3429.9,2.4308]
[1721274874402,2.91499,3430.6,3429.9,2.4308]
[1721274874557,2.91472,3430.9,3430.0,2.91543]
[1721274874759,2.91472,3430.9,3430.2,2.4308]
[1721274875657,2.91454,3431.1,3430.2,5.34606]
[1721274875894,2.91454,3431.1,3430.3,2.91517]
[1721274876194,5.23794,3431.8,3430.1,3.741525]
[1721274876195,2.91422,3431.5,3430.6,2.91492]
[1721274876491,2.91422,3431.5,3430.7,2.91485]
[1721274876692,2.91422,3431.5,3430.8,0.525065]
[1721274878286,2.91422,3431.5,3430.5,2.3358]
[1721274878489,2.91444,3431.2,3430.6,1.01359444]
[1721274878673,2.91444,3431.2,3430.5,2.3358]
[1721274878882,2.91444,3431.2,3430.6,1.0135957]
[1721274879089,2.91444,3431.2,3430.6,0.6873998]
[1721274882281,2.91444,3431.2,3430.5,2.3358]
[1721274882467,2.91444,3431.2,3430.6,1.01359619]
[1721274882663,2.91444,3431.2,3430.5,2.3358]
[1721274883975,2.91461,3431.0,3430.5,2.3358]
[1721274886206,2.91461,3431.0,3430.2,3.52476231]
[1721274886505,3.497515,3431.0,3430.2,2.91527]
[1721274886807,3.497515,3431.0,3430.3,1.01367044]
[1721274886966,3.497515,3431.0,3430.2,2.91527]
[1721274887173,3.497515,3431.0,3430.3,1.01368165]
[1721274887372,3.497515,3431.0,3430.0,7.78064231]
[1721274887574,3.497515,3431.0,3430.1,2.53421113]
[1721274887796,3.497515,3431.0,3430.2,1.01368445]
[1721274887999,2.91461,3431.0,3430.0,9.36358885]
[1721274888173,2.91461,3431.0,3430.1,2.53432367]
[1721274888375,2.91477,3430.8,3430.0,8.75409654]
[1721274888577,2.91477,3430.8,3430.1,1.01372759]
[1721274888922,2.91477,3430.8,3430.2,1.33773164]
[1721274893384,2.91477,3430.8,3430.0,2.2577]
[1721274895440,2.91477,3430.8,3429.9,5.91549]
[1721274895738,2.91477,3430.8,3429.9,2.91549]
[1721274896340,2.91477,3430.8,3430.0,2.91543]
[1721274897848,2.91501,3430.6,3429.6,7.23335]
[1721274898149,2.91501,3430.6,3429.7,7.230601]
[1721274902144,5.82961,3430.8,3429.9,2.91551]
[1721274902437,2.91485,3430.7,3429.9,2.91551]
[1721274905729,2.91472,3430.9,3430.1,2.91536]
[1721274910044,2.91452,3431.1,3430.2,5.41229]
[1721274910270,0.291452,3431.0,3430.2,5.41229]
[1721274910555,0.291452,3431.0,3430.2,2.91519]
[1721274910757,2.3147,3430.9,3429.8,5.19308]
[1721274910922,2.91484,3430.8,3429.9,2.91553]
[1721274911636,2.9151,3430.5,3429.5,2.91586]
[1721274911964,3.49555347,3430.4,3429.5,2.91586]
[1721274912253,2.91511,3430.4,3429.5,2.91586]
[1721274916655,2.91511,3430.4,3429.6,2.91577]
[1721274919661,2.26,3430.3,3429.6,2.91577]
[1721274920752,2.91538,3430.1,3428.9,2.4152]
[1721274921063,2.91561,3429.9,3428.9,5.33156]
[1721274921826,2.91564,3429.8,3428.9,5.33156]
[1721274926475,2.91564,3429.8,3428.9,7.32956]
[1721274926678,2.91564,3429.8,3429.0,1.324611]
[1721274926832,2.91564,3429.8,3429.0,4.240891]
[1721274927878,0.226,3430.2,3429.0,4.240891]
[1721274928237,0.226,3430.2,3429.2,2.91611]
[1721274928238,2.91542,3430.1,3429.2,2.91611]
[1721274930377,2.91542,3430.1,3429.6,0.833]
[1721274930670,1.565669,3430.0,3429.6,0.833]
[1721274932371,1.565669,3430.0,3429.2,2.91611]
[1721274932576,1.565669,3430.0,3429.7,0.833]
[1721274933326,1.565669,3430.0,3429.5,0.833]
[1721274934878,2.91542,3430.1,3429.5,0.833]
[1721274936302,2.91546,3430.0,3429.5,0.833]
[1721274936537,2.2924,3430.1,3428.9,2.4152]
[1721274936806,2.91577,3429.7,3428.9,3.2482]
[1721274937804,2.91585,3429.6,3428.9,3.2482]
[1721274939233,2.91585,3429.6,3429.2,0.833]
[1721274940216,2.91589,3429.5,3429.0,0.833]
[1721274940449,2.91602,3429.4,3428.6,2.91664]
[1721274940634,2.91602,3429.4,3428.8,0.833]
[1721274941355,8.173,3429.9,3429.1,3.308]